fUSD/lending_fUSD_20250602
["ID","MTS","AMOUNT","RATE_DAILY","PERIOD"]
[363725366,1748847048541,-168.12980321,0.00019863,2]
[363725367,1748847048551,-722.24,0.00019863,2]
[363725368,1748847048561,-420.0,0.00019863,2]
[363725369,1748847048570,-2767.08,0.00019863,2]
[363725370,1748847048579,-420.0,0.00019863,2]
[363725371,1748847048589,-420.0,0.00019863,2]
[363725372,1748847048599,-151.5704613,0.00019865,2]
[363725373,1748847048608,-355.9735993,0.0001987,2]
[363725374,1748847048618,-158.39445247,0.00019899,2]
[363725375,1748847048628,-455.34692895,0.00019899,2]
[363725376,1748847048639,-841.09078813,0.00019899,2]
[363725377,1748847048650,-735.915,0.00019899,2]
[363725378,1748847048661,-556.3898016,0.00019899,2]
[363725379,1748847048671,-2769.69497597,0.00019899,2]
[363725380,1748847048680,-680.93995596,0.000199,2]
[363725381,1748847048690,-2392.88544559,0.000199,2]
[363725382,1748847048705,-3372.32054059,0.000199,2]
[363725383,1748847048716,-702.9804841,0.000199,2]
[363725384,1748847048726,-151.5704613,0.00019918,2]
[363725385,1748847048735,-311.45871862,0.00019919,2]
[363725386,1748847048746,-1171.06832159,0.00019921,2]
[363725387,1748847048970,-914.60609261,0.00019921,2]
[363725388,1748847048982,-1155.22750439,0.00019921,2]
[363725389,1748847048994,-2117.53557602,0.00019921,2]
[363725390,1748847049003,-80.28297978,0.00019944,2]
[363725391,1748847049015,-819.97961823,0.00019944,2]
[363725392,1748847049027,-4458.1748966,0.00019944,2]
[363725393,1748847049036,-943.0,0.00019959,2]
[363725394,1748847049046,-99.49953388,0.00019959,2]
[363725395,1748847049057,-727.93842349,0.00019959,2]
[363725396,1748847049069,-300.42878841,0.00019959,2]
[363725397,1748847049080,-323.57617519,0.00019959,2]
[363725398,1748847049092,-15.55707903,0.00019959,2]
[363725399,1748847049101,-770.74346636,0.00019959,2]
[363725400,1748847049112,-30.25653364,0.00019959,2]
[363725401,1748847049122,-635.0,0.00019959,2]
[363725402,1748847049131,-1271.0,0.00019959,2]
[363725403,1748847049141,-588.0,0.00019959,2]
[363725404,1748847049151,-557.0,0.00019959,2]
[363725405,1748847049160,-925.0,0.00019959,2]
[363725406,1748847049170,-155.0,0.00019959,2]
[363725407,1748847049180,-7010.0,0.00019959,2]
[363725408,1748847049191,-882.0,0.00019959,2]
[363725409,1748847049200,-764.39030746,0.00019959,2]
[363725410,1748847049212,-1951.11125458,0.00019959,2]
[363725411,1748847049227,-1359.49843796,0.00019959,2]
[363725412,1748847049237,-850.0,0.00019959,2]
[363725413,1748847049247,-5358.43749461,0.00019966,2]
[363725414,1748847049258,-151.5704613,0.00019972,2]
[363725415,1748847049268,-500.0,0.00019973,2]
[363725416,1748847049277,-500.0,0.00019973,2]
[363725417,1748847049287,-500.0,0.00019973,2]
[363725418,1748847049296,-500.0,0.00019973,2]
[363725419,1748847049307,-500.0,0.00019973,2]
[363725420,1748847049316,-5358.43749461,0.00019988,2]
[363725421,1748847049325,-500.0,0.0001999,2]
[363725422,1748847049334,-185.9,0.0001999,2]
[363725423,1748847049343,-185.9,0.0001999,2]
[363725424,1748847049353,-185.9,0.0001999,2]
[363725425,1748847049363,-185.9,0.0001999,2]
[363725426,1748847049373,-185.9,0.0001999,2]
[363725427,1748847049383,-185.9,0.0001999,2]
[363725428,1748847049392,-185.9,0.0001999,2]
[363725429,1748847049401,-185.9,0.0001999,2]
[363725430,1748847049411,-185.9,0.0001999,2]
[363725431,1748847049420,-185.9,0.0001999,2]
[363725432,1748847049430,-185.9,0.0001999,2]
[363725433,1748847049439,-185.9,0.0001999,2]
[363725434,1748847049448,-185.9,0.0001999,2]
[363725435,1748847049459,-185.9,0.0001999,2]
[363725436,1748847049468,-185.9,0.0001999,2]
[363725437,1748847049477,-185.9,0.0001999,2]
[363725438,1748847049487,-185.9,0.0001999,2]
[363725439,1748847049496,-185.9,0.0001999,2]
[363725440,1748847049507,-185.9,0.0001999,2]
[363725441,1748847049518,-185.9,0.0001999,2]
[363725442,1748847049530,-185.9,0.0001999,2]
[363725443,1748847049540,-185.9,0.0001999,2]
[363725444,1748847049549,-185.9,0.0001999,2]
[363725445,1748847049558,-168.7828326,0.0001999,2]
[363725446,1748847049572,-17.1171674,0.0001999,2]
[363725447,1748847049582,-185.9,0.0001999,2]
[363725448,1748847049592,-185.9,0.0001999,2]
[363725449,1748847049604,-185.9,0.0001999,2]
[363725450,1748847049613,-185.9,0.0001999,2]
[363725451,1748847049622,-185.9,0.0001999,2]
[363725452,1748847049632,-185.9,0.0001999,2]
[363725453,1748847049641,-185.9,0.0001999,2]
[363725454,1748847049652,-185.9,0.0001999,2]
[363725455,1748847049663,-185.9,0.0001999,2]
[363725456,1748847049672,-185.9,0.0001999,2]
[363725457,1748847049682,-185.9,0.0001999,2]
[363725458,1748847049693,-185.9,0.0001999,2]
[363725459,1748847049702,-185.9,0.0001999,2]
[363725460,1748847049712,-185.9,0.0001999,2]
[363725461,1748847049724,-185.9,0.0001999,2]
[363725462,1748847049734,-185.9,0.0001999,2]
[363725463,1748847049744,-185.9,0.0001999,2]
[363725464,1748847049753,-185.9,0.0001999,2]
[363725465,1748847049763,-185.9,0.0001999,2]
[363725466,1748847049773,-185.9,0.0001999,2]
[363725467,1748847049783,-164.4828326,0.0001999,2]
[363725468,1748847049798,-21.4171674,0.0001999,2]
[363725469,1748847049807,-185.9,0.0001999,2]
[363725470,1748847049817,-185.9,0.0001999,2]
[363725471,1748847049827,-185.9,0.0001999,2]
[363725472,1748847049837,-2.58941226,0.0001999,2]
[363725473,1748847049849,-183.31058774,0.0001999,2]
[363725474,1748847049859,-185.9,0.0001999,2]
[363725475,1748847049868,-185.9,0.0001999,2]
[363725476,1748847049879,-185.9,0.0001999,2]
[363725477,1748847049888,-185.9,0.0001999,2]
[363725478,1748847049898,-185.9,0.0001999,2]
[363725479,1748847049907,-185.9,0.0001999,2]
[363725480,1748847049917,-185.9,0.0001999,2]
[363725481,1748847049926,-185.9,0.0001999,2]
[363725482,1748847049935,-180.20396946,0.0001999,2]
[363725483,1748847049947,-5.69603054,0.0001999,2]
[363725484,1748847049956,-185.9,0.0001999,2]
[363725485,1748847049966,-185.9,0.0001999,2]
[363725486,1748847049975,-34.94536719,0.0001999,2]
[363725487,1748847049991,-150.95463281,0.0001999,2]
[363725488,1748847050001,-185.9,0.0001999,2]
[363725489,1748847050010,-185.9,0.0001999,2]
[363725490,1748847050021,-146.24536719,0.0001999,2]
[363725491,1748847050033,-39.65463281,0.0001999,2]
[363725492,1748847050043,-185.9,0.0001999,2]
[363725493,1748847050054,-185.9,0.0001999,2]
[363725494,1748847050065,-185.9,0.0001999,2]
[363725495,1748847050075,-185.9,0.0001999,2]
[363725496,1748847050085,-185.9,0.0001999,2]
[363725497,1748847050095,-185.9,0.0001999,2]
[363725498,1748847050104,-185.9,0.0001999,2]
[363725499,1748847050115,-185.9,0.0001999,2]
[363725500,1748847050124,-185.9,0.0001999,2]
[363725501,1748847050134,-185.9,0.0001999,2]
[363725502,1748847050144,-185.9,0.0001999,2]
[363725503,1748847050154,-288.19460035,0.00019997,2]
[363725504,1748847050164,-13227.08685124,0.00019997,2]
[363725505,1748847050180,-27494.56943147,0.00019997,2]
[363725506,1748847297134,711.8929158,2.75e-06,120]
[363725507,1748847300015,1000.0,0.00019,2]
[363725508,1748847394134,150.0,0.00018981,2]
[363725509,1748847424648,364.84,0.00018968,2]
[363725510,1748847512158,218.13,0.00018945,2]
[363725511,1748847554108,312.77,0.00018957,2]
[363725512,1748847575814,2180.69,0.00018945,2]
[363725513,1748847645146,8658.03,0.0001891,2]
[363725515,1748847884863,286.1,0.00013699,2]
[363725517,1748847915787,16825.01,0.00018825,2]
[363725518,1748847919699,2300.0,0.00019,2]
[363725519,1748847945808,200.0,0.00018825,2]
[363725520,1748847998818,150.0,0.00019001,2]
[363725521,1748848061310,305.48,0.00016775,2]
[363725522,1748848083082,250.0,0.00018588,2]
[363725523,1748848084309,449.38,0.00018588,2]
[363725525,1748848091560,204.0,0.00018685,2]
[363725526,1748848093506,397.57,0.0001861,2]
[363725528,1748848144363,755.22,0.00018624,2]
[363725555,1748848231645,-305.48,0.00019039,2]
[363725556,1748848231655,-250.0,0.00019069,2]
[363725557,1748848231664,-326.23597347,0.00019078,2]
[363725558,1748848231675,-704.2349635,0.00019078,2]
[363725559,1748848231685,-400.0,0.00019099,2]
[363725560,1748848231694,-400.0,0.00019136,2]
[363725561,1748848231703,-151.0,0.00019166,2]
[363725562,1748848231713,-151.0,0.00019166,2]
[363725563,1748848231723,-207.4,0.00019166,2]
[363725564,1748848231732,-151.0,0.00019166,2]
[363725565,1748848231742,-300.0,0.00019177,2]
[363725566,1748848231752,-850.0,0.00019177,2]
[363725567,1748848231763,-300.0,0.00019177,2]
[363725568,1748848231772,-1200.0,0.00019177,2]
[363725569,1748848231782,-420.0,0.00019178,2]
[363725570,1748848231791,-344.88767396,0.00019178,2]
[363725571,1748848231803,-96.66978643,0.00019178,2]
[363725572,1748848231812,-420.0,0.00019178,2]
[363725573,1748848231822,-420.0,0.00019178,2]
[363725574,1748848231831,-153.89502931,0.00019178,2]
[363725575,1748848231842,-266.10497069,0.00019178,2]
[363725576,1748848231852,-68.89587687,0.00019178,2]
[363725577,1748848231868,-351.10412313,0.00019178,2]
[363725578,1748848231877,-420.0,0.00019178,2]
[363725579,1748848231886,-525.18122416,0.00019178,2]
[363725580,1748848231897,-286.29877584,0.00019178,2]
[363725581,1748848231907,-420.0,0.00019178,2]
[363725582,1748848231916,-279.11487517,0.00019178,2]
[363725583,1748848231928,-2578.51512483,0.00019178,2]
[363725584,1748848231939,-1311.92,0.00019178,2]
[363725585,1748848231949,-431.2,0.00019178,2]
[363725586,1748848231960,-420.0,0.00019178,2]
[363725587,1748848231970,-420.0,0.00019178,2]
[363725588,1748848231979,-420.0,0.00019178,2]
[363725589,1748848231989,-420.0,0.00019178,2]
[363725590,1748848231998,-420.0,0.00019178,2]
[363725591,1748848232008,-420.0,0.00019178,2]
[363725592,1748848232017,-2265.66309607,0.00019178,2]
[363725593,1748848232041,-173.00690393,0.00019178,2]
[363725594,1748848232050,-1092.46,0.00019178,2]
[363725595,1748848232060,-420.0,0.00019178,2]
[363725596,1748848232072,-420.0,0.00019178,2]
[363725597,1748848232082,-237.43372238,0.00019178,2]
[363725598,1748848232091,-420.0,0.00019178,2]
[363725599,1748848232101,-467.8,0.00019178,2]
[363725600,1748848232111,-420.0,0.00019178,2]
[363725601,1748848232122,-433.91,0.00019178,2]
[363725602,1748848232132,-420.0,0.00019178,2]
[363725603,1748848232142,-420.0,0.00019178,2]
[363725604,1748848232153,-357.5,0.00019178,2]
[363725605,1748848232163,-420.0,0.00019178,2]
[363725606,1748848232173,-420.0,0.00019178,2]
[363725607,1748848232182,-531.3,0.00019178,2]
[363725608,1748848232192,-420.0,0.00019178,2]
[363725609,1748848232202,-473.25,0.00019178,2]
[363725610,1748848232211,-420.0,0.00019178,2]
[363725611,1748848232220,-569.72,0.00019178,2]
[363725612,1748848232229,-541.68,0.00019178,2]
[363725613,1748848232239,-444.51,0.00019178,2]
[363725614,1748848232249,-692.93,0.00019178,2]
[363725615,1748848232259,-204.8419738,0.00019178,2]
[363725626,1748848239665,-215.1580262,0.00019178,2]
[363725627,1748848239674,-420.0,0.00019178,2]
[363725628,1748848239684,-420.0,0.00019178,2]
[363725629,1748848239693,-420.0,0.00019178,2]
[363725630,1748848239703,-204.8419737,0.00019178,2]
[363725637,1748848247618,2606.67,0.00018869,2]
[363725638,1748848271436,202.0,0.00018685,2]
[363725639,1748848400366,300.0,0.000188,6]
[363725640,1748848402464,600.0,0.000189,6]
[363725641,1748848447698,1000.0,0.00018329,2]
[363725642,1748848483311,203.42,0.00018307,2]
[363725643,1748848553930,23900.0,0.00018331,2]
[363725644,1748848621703,9393.49491068,0.0001899,2]
[363725645,1748848655776,1000.0,0.00017887,2]
[363725646,1748848674274,1126.55,0.00018239,2]
[363725647,1748848777280,166.32,0.00018342,2]
[363725649,1748848984518,300.0,0.00018,2]
[363725651,1748848992019,279.68,0.00013699,2]
[363725652,1748849045554,430.24,0.00016282,2]
[363725653,1748849045930,430.24,0.00018546,2]
[363725654,1748849075446,-166.60134335,0.00019062,2]
[363725655,1748849075473,-400.0,0.00019062,2]
[363725656,1748849075500,-250.0,0.00019062,2]
[363725657,1748849075527,-500.0,0.00019062,2]
[363725658,1748849075554,-400.0,0.00019067,2]
[363725659,1748849075581,-1977.25352396,0.00019071,2]
[363725660,1748849075609,-300.0,0.00019077,2]
[363725661,1748849075637,-15023.72321107,0.00019078,2]
[363725662,1748849075663,-558.14602103,0.00019078,2]
[363725663,1748849075689,-779.9306,0.00019115,2]
[363725664,1748849102379,176.46,0.00018802,2]
[363725665,1748849115114,9467.88530059,0.00019,5]
[363725666,1748849115156,4748.17014242,0.00019,5]
[363725668,1748849230571,2000.0,0.000189,6]
[363725670,1748849296368,300.0,0.000189,6]
[363725671,1748849324242,250.0,0.00018212,2]
[363725672,1748849355205,755.22,0.00018215,2]
[363725677,1748849414196,204.98,0.00018206,2]
[363725678,1748849419557,1000.0,0.00019078,2]
[363725690,1748849432058,-194.57380227,0.00019133,2]
[363725691,1748849432068,-400.0,0.00019141,2]
[363725692,1748849432078,-196.33091459,0.00019148,2]
[363725693,1748849432088,-400.0,0.00019149,2]
[363725694,1748849432098,-300.0,0.00019154,2]
[363725695,1748849432107,-1200.0,0.00019154,2]
[363725696,1748849432117,-3306.92670501,0.00019155,2]
[363725697,1748849432129,-411.8444199,0.00019155,2]
[363725698,1748849432141,-322.353,0.00019155,2]
[363725699,1748849432152,-1745.83036407,0.00019155,2]
[363725700,1748849432195,-1265.10367781,0.00019155,2]
[363725724,1748849440014,-1257.74437202,0.00019155,2]
[363725727,1748849440139,-907.05346119,0.00019155,2]
[363725728,1748849440149,-40.67599881,0.00019155,2]
[363725729,1748849440225,-166.72400119,0.00019155,2]
[363725730,1748849440235,-151.0,0.00019157,2]
[363725731,1748849440245,-151.0,0.00019157,2]
[363725732,1748849440255,-151.0,0.00019158,2]
[363725733,1748849440264,-151.0,0.00019158,2]
[363725734,1748849440274,-151.0,0.00019158,2]
[363725735,1748849440283,-151.0,0.00019158,2]
[363725736,1748849440292,-151.0,0.00019158,2]
[363725737,1748849440302,-151.0,0.00019158,2]
[363725738,1748849440312,-151.0,0.00019166,2]
[363725739,1748849440322,-151.0,0.00019166,2]
[363725740,1748849440331,-151.0,0.00019166,2]
[363725741,1748849440341,-1916.073153,0.00019178,2]
[363725742,1748849440351,-183.957081,0.00019178,2]
[363725743,1748849440362,-3086.488607,0.00019178,2]
[363725744,1748849440371,-420.0,0.00019178,2]
[363725745,1748849440380,-420.0,0.00019178,2]
[363725746,1748849440390,-461.7,0.00019178,2]
[363725747,1748849440400,-424.13886215,0.00019178,2]
[363725748,1748849440410,-420.0,0.00019178,2]
[363725749,1748849440420,-420.0,0.00019178,2]
[363725750,1748849440429,-528.26709085,0.00019178,2]
[363725751,1748849440439,-420.0,0.00019178,2]
[363725752,1748849440449,-233.18557803,0.00019178,2]
[363725753,1748849440459,-420.0,0.00019178,2]
[363725754,1748849440468,-420.0,0.00019178,2]
[363725755,1748849440478,-420.0,0.00019178,2]
[363725756,1748849440487,-428.01583314,0.00019178,2]
[363725757,1748849440496,-250.0,0.00019178,2]
[363725758,1748849440506,-420.0,0.00019178,2]
[363725759,1748849440515,-420.0,0.00019178,2]
[363725760,1748849440525,-420.0,0.00019178,2]
[363725761,1748849440534,-420.0,0.00019178,2]
[363725762,1748849440546,-420.0,0.00019178,2]
[363725763,1748849440556,-420.0,0.00019178,2]
[363725764,1748849440566,-420.0,0.00019178,2]
[363725765,1748849440576,-420.0,0.00019178,2]
[363725766,1748849440586,-444.86,0.00019178,2]
[363725767,1748849440596,-420.0,0.00019178,2]
[363725768,1748849440606,-420.0,0.00019178,2]
[363725769,1748849440616,-420.0,0.00019178,2]
[363725770,1748849440626,-423.04770398,0.00019178,2]
[363725771,1748849440635,-420.0,0.00019178,2]
[363725772,1748849440644,-420.0,0.00019178,2]
[363725773,1748849440654,-425.52973979,0.00019178,2]
[363725774,1748849440664,-420.0,0.00019178,2]
[363725775,1748849440674,-420.0,0.00019178,2]
[363725776,1748849440683,-420.0,0.00019178,2]
[363725777,1748849440692,-420.0,0.00019178,2]
[363725778,1748849440702,-420.0,0.00019178,2]
[363725779,1748849440712,-420.0,0.00019178,2]
[363725780,1748849440721,-420.0,0.00019178,2]
[363725781,1748849440731,-420.0,0.00019178,2]
[363725782,1748849440740,-420.0,0.00019178,2]
[363725783,1748849440750,-334.39892394,0.00019178,2]
[363725784,1748849440760,-420.0,0.00019178,2]
[363725785,1748849440770,-420.0,0.00019178,2]
[363725786,1748849440779,-420.0,0.00019178,2]
[363725787,1748849440788,-537.53040084,0.00019178,2]
[363725788,1748849440800,-395.89032265,0.00019178,2]
[363725789,1748849440809,-172.84,0.00019178,2]
[363725790,1748849440819,-422.79884909,0.00019178,2]
[363725791,1748849440829,-420.0,0.00019178,2]
[363725792,1748849440838,-431.26371936,0.00019178,2]
[363725793,1748849440848,-430.02747192,0.00019178,2]
[363725794,1748849440858,-420.0,0.00019178,2]
[363725795,1748849440868,-420.0,0.00019178,2]
[363725796,1748849440879,-420.0,0.00019178,2]
[363725797,1748849440889,-420.0,0.00019178,2]
[363725798,1748849440899,-420.0,0.00019178,2]
[363725799,1748849440908,-500.0,0.00019178,2]
[363725800,1748849440917,-420.0,0.00019178,2]
[363725801,1748849440928,-567.10526051,0.00019178,2]
[363725802,1748849440937,-420.0,0.00019178,2]
[363725803,1748849440947,-420.0,0.00019178,2]
[363725804,1748849440956,-420.0,0.00019178,2]
[363725805,1748849440967,-446.96735964,0.00019178,2]
[363725806,1748849440976,-420.0,0.00019178,2]
[363725807,1748849440985,-420.0,0.00019178,2]
[363725808,1748849440995,-559.77,0.00019178,2]
[363725809,1748849441005,-420.0,0.00019178,2]
[363725810,1748849441015,-420.0,0.00019178,2]
[363725811,1748849441024,-420.0,0.00019178,2]
[363725812,1748849441034,-420.0,0.00019178,2]
[363725813,1748849441044,-420.0,0.00019178,2]
[363725814,1748849441053,-420.0,0.00019178,2]
[363725815,1748849441063,-420.0,0.00019178,2]
[363725816,1748849441073,-420.0,0.00019178,2]
[363725817,1748849441083,-420.0,0.00019178,2]
[363725818,1748849441092,-420.0,0.00019178,2]
[363725819,1748849441102,-420.0,0.00019178,2]
[363725820,1748849441112,-420.0,0.00019178,2]
[363725821,1748849441122,-420.0,0.00019178,2]
[363725822,1748849441132,-420.0,0.00019178,2]
[363725823,1748849441143,-420.0,0.00019178,2]
[363725824,1748849441152,-500.0,0.00019178,2]
[363725825,1748849441162,-420.0,0.00019178,2]
[363725826,1748849441171,-420.0,0.00019178,2]
[363725827,1748849441181,-420.0,0.00019178,2]
[363725828,1748849441191,-385.3760449,0.00019178,2]
[363725829,1748849441201,-420.0,0.00019178,2]
[363725830,1748849441210,-420.0,0.00019178,2]
[363725831,1748849441220,-420.0,0.00019178,2]
[363725832,1748849441229,-420.0,0.00019178,2]
[363725833,1748849441238,-420.0,0.00019178,2]
[363725834,1748849441248,-420.0,0.00019178,2]
[363725835,1748849441257,-420.0,0.00019178,2]
[363725836,1748849441266,-420.0,0.00019178,2]
[363725837,1748849441486,-420.0,0.00019178,2]
[363725838,1748849441496,-420.0,0.00019178,2]
[363725839,1748849441506,-332.32,0.00019178,2]
[363725840,1748849441515,-420.0,0.00019178,2]
[363725841,1748849441525,-420.0,0.00019178,2]
[363725842,1748849441535,-420.0,0.00019178,2]
[363725843,1748849441544,-420.0,0.00019178,2]
[363725844,1748849441554,-420.0,0.00019178,2]
[363725845,1748849441563,-493.28,0.00019178,2]
[363725846,1748849441573,-420.0,0.00019178,2]
[363725847,1748849441583,-420.0,0.00019178,2]
[363725848,1748849441592,-420.0,0.00019178,2]
[363725849,1748849441603,-420.0,0.00019178,2]
[363725850,1748849441613,-420.0,0.00019178,2]
[363725851,1748849441622,-420.0,0.00019178,2]
[363725852,1748849441632,-420.0,0.00019178,2]
[363725853,1748849441642,-420.0,0.00019178,2]
[363725854,1748849441651,-420.0,0.00019178,2]
[363725855,1748849441660,-420.0,0.00019178,2]
[363725856,1748849441670,-420.0,0.00019178,2]
[363725857,1748849441679,-150.62879167,0.00019178,2]
[363725858,1748849441689,-420.0,0.00019178,2]
[363725859,1748849441702,-490.0,0.00019178,2]
[363725860,1748849441711,-420.0,0.00019178,2]
[363725861,1748849441722,-420.0,0.00019178,2]
[363725862,1748849441731,-420.0,0.00019178,2]
[363725863,1748849441742,-420.0,0.00019178,2]
[363725864,1748849441751,-500.0,0.00019178,2]
[363725865,1748849441761,-420.0,0.00019178,2]
[363725866,1748849441772,-152.36542362,0.00019178,2]
[363725867,1748849441782,-420.0,0.00019178,2]
[363725868,1748849441793,-500.0,0.00019178,2]
[363725869,1748849441803,-420.0,0.00019178,2]
[363725870,1748849441813,-420.0,0.00019178,2]
[363725871,1748849441823,-420.0,0.00019178,2]
[363725872,1748849441832,-420.0,0.00019178,2]
[363725873,1748849441842,-420.0,0.00019178,2]
[363725874,1748849441852,-420.0,0.00019178,2]
[363725875,1748849441862,-420.0,0.00019178,2]
[363725876,1748849441871,-500.0,0.00019178,2]
[363725877,1748849441881,-420.0,0.00019178,2]
[363725878,1748849441890,-837.62922367,0.00019178,2]
[363725879,1748849441899,-151.0,0.00019178,2]
[363725880,1748849441909,-217.22239579,0.00019178,2]
[363725881,1748849441918,-420.0,0.00019178,2]
[363725882,1748849441927,-420.0,0.00019178,2]
[363725883,1748849441937,-419.28,0.00019178,2]
[363725884,1748849441946,-420.0,0.00019178,2]
[363725885,1748849441956,-420.0,0.00019178,2]
[363725886,1748849441965,-420.0,0.00019178,2]
[363725887,1748849441974,-2593.368371,0.00019178,2]
[363725888,1748849441984,-420.0,0.00019178,2]
[363725889,1748849441993,-2593.368371,0.00019178,2]
[363725890,1748849442002,-420.0,0.00019178,2]
[363725891,1748849442012,-420.0,0.00019178,2]
[363725892,1748849442021,-498.7,0.00019178,2]
[363725893,1748849442031,-420.0,0.00019178,2]
[363725894,1748849442040,-420.0,0.00019178,2]
[363725895,1748849442050,-420.0,0.00019178,2]
[363725896,1748849442059,-420.0,0.00019178,2]
[363725897,1748849442069,-420.0,0.00019178,2]
[363725898,1748849442078,-350.63,0.00019178,2]
[363725899,1748849442088,-420.0,0.00019178,2]
[363725900,1748849442098,-151.0,0.00019178,2]
[363725901,1748849442107,-420.0,0.00019178,2]
[363725902,1748849442117,-420.0,0.00019178,2]
[363725903,1748849442127,-420.0,0.00019178,2]
[363725904,1748849442136,-420.0,0.00019178,2]
[363725905,1748849442146,-428.08536614,0.00019178,2]
[363725906,1748849442156,-494.13805671,0.00019178,2]
[363725907,1748849442165,-420.0,0.00019178,2]
[363725908,1748849442175,-200.0,0.00019178,2]
[363725909,1748849442185,-420.0,0.00019178,2]
[363725910,1748849442194,-420.0,0.00019178,2]
[363725911,1748849442203,-420.0,0.00019178,2]
[363725912,1748849442212,-452.41262136,0.00019178,2]
[363725913,1748849442221,-420.0,0.00019178,2]
[363725914,1748849442231,-386.59,0.00019178,2]
[363725915,1748849442240,-420.0,0.00019178,2]
[363725916,1748849442249,-420.0,0.00019178,2]
[363725917,1748849442259,-420.0,0.00019178,2]
[363725918,1748849442267,-420.0,0.00019178,2]
[363725919,1748849442276,-268.4,0.00019178,2]
[363725920,1748849442285,-420.0,0.00019178,2]
[363725921,1748849442295,-420.0,0.00019178,2]
[363725922,1748849442304,-351.14,0.00019178,2]
[363725923,1748849442314,-151.0,0.00019178,2]
[363725924,1748849442323,-420.0,0.00019178,2]
[363725925,1748849442334,-151.0,0.00019178,2]
[363725926,1748849442343,-420.0,0.00019178,2]
[363725927,1748849442353,-420.0,0.00019178,2]
[363725928,1748849442362,-420.0,0.00019178,2]
[363725929,1748849442372,-151.0,0.00019178,2]
[363725930,1748849442381,-151.0,0.00019178,2]
[363725931,1748849442391,-420.0,0.00019178,2]
[363725932,1748849442401,-151.0,0.00019178,2]
[363725933,1748849442411,-151.0,0.00019178,2]
[363725934,1748849442421,-1243.43,0.00019178,2]
[363725935,1748849442431,-420.0,0.00019178,2]
[363725936,1748849442442,-420.0,0.00019178,2]
[363725937,1748849442452,-420.0,0.00019178,2]
[363725938,1748849442462,-420.0,0.00019178,2]
[363725939,1748849442471,-420.0,0.00019178,2]
[363725940,1748849442480,-743.37,0.00019178,2]
[363725941,1748849442492,-420.0,0.00019178,2]
[363725942,1748849442502,-420.0,0.00019178,2]
[363725943,1748849442512,-420.0,0.00019178,2]
[363725944,1748849442522,-420.0,0.00019178,2]
[363725945,1748849442532,-420.0,0.00019178,2]
[363725946,1748849442543,-420.0,0.00019178,2]
[363725947,1748849442552,-420.0,0.00019178,2]
[363725948,1748849442561,-420.0,0.00019178,2]
[363725949,1748849442573,-420.0,0.00019178,2]
[363725950,1748849442583,-420.0,0.00019178,2]
[363725951,1748849442594,-211.51,0.00019178,2]
[363725952,1748849442604,-151.0,0.00019178,2]
[363725953,1748849442614,-256.18,0.00019178,2]
[363725954,1748849442624,-439.22,0.00019178,2]
[363725955,1748849442634,-151.0,0.00019178,2]